bitfinex-derivatives/quotes_SOLF0:USTF0_20260222
["timestamp","ask_amount","ask_price","bid_price","bid_amount"]
[1771748162476,9.06539173,85.124,85.081,4.35814376]
[1771748162684,10.5755,85.128,85.081,4.35814376]
[1771748162879,9.06448294,85.127,85.081,4.35814376]
[1771748163183,9.06448294,85.126,85.081,4.35814376]
[1771748163388,9.06448294,85.125,85.081,4.35814376]
[1771748163684,10.5755,85.128,85.081,4.35814376]
[1771748163986,9.06334144,85.127,85.081,4.35814376]
[1771748164288,9.06334144,85.126,85.081,4.35814376]
[1771748164478,9.06334144,85.125,85.081,4.35814376]
[1771748164680,10.5755,85.128,85.081,4.35814376]
[1771748164875,9.06223757,85.127,85.081,4.35814376]
[1771748165075,9.06223757,85.126,85.081,4.35814376]
[1771748165281,10.5759,85.124,85.081,4.35814376]
[1771748165787,9.06147718,85.123,85.081,4.35814376]
[1771748165988,10.5759,85.124,85.081,4.35814376]
[1771748168591,10.5759,85.124,85.075,269.70349817]
[1771748170896,2.47404453,85.13,85.075,280.28549817]
[1771748171095,9.06083352,85.129,85.075,280.28549817]
[1771748171393,9.06083352,85.128,85.075,280.28549817]
[1771748171593,9.06083352,85.127,85.075,280.28549817]
[1771748171793,9.06083352,85.126,85.075,280.28549817]
[1771748172096,9.06083352,85.125,85.075,280.28549817]
[1771748172294,9.06083352,85.124,85.075,280.28549817]
[1771748172599,2.47404453,85.13,85.075,280.28549817]
[1771748172894,19.6353761,85.129,85.075,280.28549817]
[1771748173093,9.0599761,85.128,85.075,280.28549817]
[1771748173392,9.0599761,85.127,85.075,280.28549817]
[1771748173593,9.0599761,85.126,85.075,280.28549817]
[1771748173787,9.0599761,85.125,85.075,280.28549817]
[1771748173987,10.5754,85.129,85.075,280.28549817]
[1771748173988,9.0599761,85.124,85.075,280.28549817]
[1771748174193,10.5754,85.129,85.075,280.28549817]
[1771748174393,9.05877722,85.128,85.08,2.47404453]
[1771748174597,9.05877722,85.127,85.08,2.47404453]
[1771748174793,9.05877722,85.126,85.08,2.47404453]
[1771748174992,9.05877722,85.125,85.08,2.47404453]
[1771748175193,9.05877722,85.124,85.08,2.47404453]
[1771748175493,10.5754,85.129,85.08,2.47404453]
[1771748175793,9.06545799,85.128,85.08,2.47404453]
[1771748175992,9.06545799,85.127,85.08,2.47404453]
[1771748176192,9.06545799,85.126,85.08,2.47404453]
[1771748176393,9.06545799,85.125,85.08,2.47404453]
[1771748176592,9.06545799,85.124,85.081,4.57143243]
[1771748176791,10.5754,85.129,85.081,4.57143243]
[1771748176993,9.0653511,85.128,85.081,4.57143243]
[1771748177192,10.5754,85.129,85.081,4.57143243]
[1771748177193,9.0653511,85.127,85.081,4.57143243]
[1771748177394,9.0653511,85.126,85.081,4.57143243]
[1771748177592,9.0653511,85.125,85.081,4.57143243]
[1771748177793,9.0653511,85.124,85.081,4.57143243]
[1771748177994,10.5754,85.129,85.081,4.57143243]
[1771748178193,9.06510522,85.128,85.081,4.57143243]
[1771748178396,9.06510522,85.127,85.081,4.57143243]
[1771748178693,9.06510522,85.126,85.081,4.57143243]
[1771748178895,9.06510522,85.125,85.081,4.57143243]
[1771748179094,10.5754,85.129,85.081,4.57143243]
[1771748179297,9.06519894,85.128,85.081,4.57143243]
[1771748179498,9.06519894,85.127,85.081,4.57143243]
[1771748179701,9.06519894,85.126,85.081,4.57143243]
[1771748179895,9.06519894,85.125,85.081,4.57143243]
[1771748180096,9.06519894,85.124,85.081,4.57143243]
[1771748180399,10.5754,85.129,85.081,4.57143243]
[1771748180596,9.06503715,85.128,85.081,4.57143243]
[1771748180795,9.06503715,85.127,85.081,4.57143243]
[1771748180994,9.06503715,85.126,85.081,4.57143243]
[1771748181195,9.06503715,85.125,85.081,4.57143243]
[1771748181399,9.06503715,85.124,85.081,4.57143243]
[1771748181601,10.5754,85.129,85.081,4.57143243]
[1771748181799,9.06509372,85.128,85.081,4.57143243]
[1771748181998,9.06509372,85.127,85.081,4.57143243]
[1771748182199,9.06509372,85.126,85.081,4.57143243]
[1771748182396,9.06509372,85.125,85.081,4.57143243]
[1771748182694,9.06509372,85.124,85.081,4.57143243]
[1771748182894,10.5754,85.129,85.081,4.57143243]
[1771748183096,9.06514192,85.128,85.081,4.57143243]
[1771748183296,9.06514192,85.127,85.081,4.57143243]
[1771748183497,9.06514192,85.126,85.081,4.57143243]
[1771748183796,9.06514192,85.125,85.081,4.57143243]
[1771748183996,9.06514192,85.124,85.081,4.57143243]
[1771748184197,10.5754,85.129,85.081,4.57143243]
[1771748184498,9.06537077,85.128,85.081,4.57143243]
[1771748184700,9.06537077,85.127,85.081,4.57143243]
[1771748185000,9.06537077,85.126,85.081,4.57143243]
[1771748185202,9.06537077,85.125,85.081,4.57143243]
[1771748185502,9.06537077,85.124,85.081,4.57143243]
[1771748185801,10.5754,85.129,85.081,4.57143243]
[1771748186003,9.06552833,85.128,85.081,4.57143243]
[1771748186302,9.06552833,85.127,85.081,4.57143243]
[1771748186502,9.06552833,85.126,85.081,4.57143243]
[1771748186700,9.06552833,85.125,85.081,4.57143243]
[1771748186900,9.06552833,85.124,85.081,4.57143243]
[1771748187100,10.5754,85.129,85.081,4.57143243]
[1771748187304,9.06578397,85.128,85.081,4.57143243]
[1771748187602,9.06578397,85.127,85.081,4.57143243]
[1771748187802,9.06578397,85.126,85.081,4.57143243]
[1771748188003,9.06578397,85.125,85.081,4.57143243]
[1771748188198,9.06578397,85.124,85.081,4.57143243]
[1771748188400,10.5754,85.129,85.081,4.57143243]
[1771748188598,9.0662121,85.128,85.081,4.57143243]
[1771748188897,9.0662121,85.127,85.081,4.57143243]
[1771748189093,9.0662121,85.126,85.081,4.57143243]
[1771748189294,9.0662121,85.125,85.081,4.57143243]
[1771748189501,9.0662121,85.124,85.081,4.57143243]
[1771748189702,10.5754,85.129,85.081,4.57143243]
[1771748189898,9.06651388,85.128,85.081,4.57143243]
[1771748190102,9.06651388,85.127,85.081,4.57143243]
[1771748190302,9.06651388,85.126,85.081,4.57143243]
[1771748190497,10.5754,85.129,85.081,4.57143243]
[1771748190498,9.06651388,85.125,85.081,4.57143243]
[1771748190696,9.06651388,85.125,85.039,29.32276901]
[1771748190697,10.96846678,85.117,85.021,4.56439486]
[1771748190896,2.47404453,85.07,85.021,4.56439486]
[1771748191304,2.47404453,85.07,85.027,4.56439486]
[1771748191903,2.47404453,85.07,85.029,11.06369575]
[1771748192099,10.5819,85.077,85.029,11.06369575]
[1771748192303,2.47404453,85.08,85.027,4.56439486]
[1771748192507,2.47404453,85.08,85.032,4.48291653]
[1771748192906,2.47404453,85.08,85.034,4.48291653]
[1771748195809,2.47404453,85.07,85.034,4.48291653]
[1771748196010,2.47404453,85.07,85.039,11.06369575]
[1771748196408,2.47404453,85.07,85.041,11.06369575]
[1771748196608,2.47404453,85.07,85.034,4.48291653]
[1771748196924,2.47404453,85.08,85.034,4.48291653]
[1771748197307,10.5805,85.088,85.034,4.48291653]
[1771748197308,2.47404453,85.07,85.034,4.48291653]
[1771748197709,2.47404453,85.07,85.039,11.06369575]
[1771748198108,2.47404453,85.07,85.041,11.06369575]
[1771748198310,2.47404453,85.07,85.034,4.48291653]
[1771748199109,2.47404453,85.07,85.038,15.58261651]
[1771748199311,2.47404453,85.07,85.038,4.51892076]
[1771748199614,2.47404453,85.07,85.04,11.06369575]
[1771748200015,2.47404453,85.07,85.038,4.51892076]
[1771748200208,2.47404453,85.07,85.04,11.06369575]
[1771748200710,2.47404453,85.07,85.041,11.06369575]
[1771748200919,2.47404453,85.07,85.038,4.51892076]
[1771748201110,2.47404453,85.07,85.04,11.06369575]
[1771748201317,2.47404453,85.07,85.04,15.57709567]
[1771748201519,2.47404453,85.07,85.04,4.51339992]
[1771748202118,2.47404453,85.07,85.042,11.06369575]
[1771748202721,2.47404453,85.07,85.043,11.06369575]
[1771748202921,2.47404453,85.07,85.04,4.51339992]
[1771748203314,2.47404453,85.07,85.042,11.06369575]
[1771748203915,2.47404453,85.07,85.043,11.06369575]
[1771748204111,2.47404453,85.07,85.04,4.51339992]
[1771748204313,2.47404453,85.07,85.042,15.57336373]
[1771748204615,2.47404453,85.07,85.042,4.50966798]
[1771748204815,2.47404453,85.07,85.043,11.06369575]
[1771748205222,2.47404453,85.07,85.044,11.06369575]
[1771748205422,2.47404453,85.07,85.042,4.50966798]
[1771748205622,2.47404453,85.08,85.042,4.50966798]
[1771748208119,2.47404453,85.08,85.002,2.04580727]
[1771748208120,9.19323125,85.1,85.047,4.49804692]
[1771748208421,2.47404453,85.1,85.047,4.49804692]
[1771748209723,13.05304453,85.1,85.047,4.49804692]
[1771748210817,2.47404453,85.09,85.047,4.49804692]
[1771748211223,2.47404453,85.09,85.052,4.50057032]
[1771748211623,2.47404453,85.09,85.055,4.50057032]
[1771748212225,2.47404453,85.09,85.057,4.50057032]
[1771748212826,2.47404453,85.09,85.058,4.4752157]
[1771748213229,2.47404453,85.09,85.058,15.53891145]
[1771748213819,13.05304453,85.1,85.059,15.53891145]
[1771748214125,13.05304453,85.1,85.059,4.4752157]
[1771748215322,2.47404453,85.09,85.059,4.4752157]
[1771748216025,2.47583765,85.09,85.059,4.4752157]
[1771748216226,2.47583765,85.09,85.062,11.06369575]
[1771748216731,2.47583765,85.09,85.064,11.06369575]
[1771748216925,2.47583765,85.09,85.059,4.4752157]
[1771748217225,2.47583765,85.09,85.063,11.06369575]
[1771748217728,2.47583765,85.09,85.059,4.4752157]
[1771748218123,2.47583765,85.09,85.064,11.06369575]
[1771748218523,2.47583765,85.09,85.059,4.4752157]
[1771748218723,2.47583765,85.09,85.064,4.45091276]
[1771748219123,2.47583765,85.09,85.067,11.06369575]
[1771748219622,2.47583765,85.09,85.069,11.06369575]
[1771748219827,2.47583765,85.09,85.064,4.45091276]
[1771748220225,2.47583765,85.09,85.068,11.06369575]
[1771748220423,2.47583765,85.09,85.064,4.45091276]
[1771748220623,2.47583765,85.09,85.069,11.06369575]
[1771748220828,2.47583765,85.09,85.064,4.45091276]
[1771748221620,2.47583765,85.09,85.07,11.06369575]
[1771748222018,2.47583765,85.09,85.064,4.45091276]
[1771748231324,2.47583765,85.1,85.064,4.45091276]
[1771748232323,2.47583765,85.09,85.064,4.45091276]
[1771748235228,2.47583765,85.1,85.064,4.45091276]
[1771748249334,9.24271176,85.099,85.064,4.45091276]
[1771748249527,2.47583765,85.1,85.064,4.45091276]
[1771748249727,9.24451261,85.099,85.064,4.45091276]
[1771748249936,2.47583765,85.1,85.064,4.45091276]
[1771748250134,9.24451261,85.099,85.064,4.45091276]
[1771748250438,9.24451261,85.098,85.064,4.45091276]
[1771748250635,2.47583765,85.1,85.064,4.45091276]
[1771748250835,9.2468991,85.099,85.064,4.45091276]
[1771748251037,9.2468991,85.098,85.064,4.45091276]
[1771748251237,9.24975029,85.097,85.064,4.45091276]
[1771748251538,2.47583765,85.1,85.064,4.45091276]
[1771748251737,9.24980205,85.099,85.064,4.45091276]
[1771748251936,9.24980205,85.098,85.064,4.45091276]
[1771748252138,2.47583765,85.1,85.064,4.45091276]
[1771748252139,9.24980205,85.097,85.064,4.45091276]
[1771748252340,9.24980205,85.096,85.064,4.45091276]
[1771748252539,2.47583765,85.1,85.064,4.45091276]
[1771748252739,9.25369826,85.099,85.064,4.45091276]
[1771748252938,9.25369826,85.098,85.064,4.45091276]
[1771748253133,9.25369826,85.097,85.064,4.45091276]
[1771748253339,9.25369826,85.096,85.064,4.45091276]
[1771748253638,9.25369826,85.095,85.064,4.45091276]
[1771748253837,9.25369826,85.094,85.064,4.45091276]
[1771748254038,2.47583765,85.1,85.064,4.45091276]
[1771748254238,9.25767282,85.099,85.064,4.45091276]
[1771748254537,9.25767282,85.098,85.064,4.45091276]
[1771748254837,9.25767282,85.097,85.064,4.45091276]
[1771748255139,9.25767282,85.096,85.064,4.45091276]
[1771748255340,9.25767282,85.095,85.064,4.45091276]
[1771748255539,9.25767282,85.094,85.064,4.45091276]
[1771748255743,2.47583765,85.1,85.064,4.45091276]
[1771748256042,9.25762633,85.099,85.064,4.45091276]
[1771748256241,9.25762633,85.098,85.064,4.45091276]
[1771748256540,9.25762633,85.097,85.064,4.45091276]
[1771748256740,9.25762633,85.096,85.064,4.45091276]
[1771748256942,9.25762633,85.095,85.064,4.45091276]
[1771748257142,9.25762633,85.094,85.064,4.45091276]
[1771748257439,2.47583765,85.1,85.064,4.45091276]
[1771748257639,9.25761728,85.099,85.064,4.45091276]
[1771748257840,9.25761728,85.098,85.064,4.45091276]
[1771748258039,9.25761728,85.097,85.064,4.45091276]
[1771748258341,9.25761728,85.096,85.064,4.45091276]
[1771748258540,9.25761728,85.095,85.064,4.45091276]
[1771748258741,9.25761728,85.094,85.064,4.45091276]
[1771748258938,2.47583765,85.1,85.064,4.45091276]
[1771748259139,9.25886521,85.099,85.064,4.45091276]
[1771748259340,9.25886521,85.098,85.064,4.45091276]
[1771748259540,9.25886521,85.097,85.064,4.45091276]
[1771748259740,9.25886521,85.096,85.064,4.45091276]
[1771748259941,9.25886521,85.095,85.064,4.45091276]
[1771748260141,9.25886521,85.094,85.064,4.45091276]
[1771748260342,2.47583765,85.1,85.064,4.45091276]
[1771748260643,9.25804482,85.099,85.064,4.45091276]
[1771748260844,9.25804482,85.098,85.064,4.45091276]
[1771748261043,9.25804482,85.097,85.064,4.45091276]
[1771748261344,9.25804482,85.096,85.064,4.45091276]
[1771748261544,9.25804482,85.095,85.064,4.45091276]
[1771748261742,9.25804482,85.094,85.064,4.45091276]
[1771748261941,2.47583765,85.1,85.064,4.45091276]
[1771748262143,9.25813633,85.099,85.064,4.45091276]
[1771748262342,9.25813633,85.098,85.064,4.45091276]
[1771748262541,9.25813633,85.097,85.064,4.45091276]
[1771748262742,2.47583765,85.08,85.031,4.43463466]
[1771748262935,9.25813633,85.079,85.031,4.43463466]
[1771748263135,2.47583765,85.08,85.031,4.43463466]
[1771748263635,2.47583765,85.08,85.036,10.5868]
[1771748263842,2.47583765,85.08,85.037,4.43463466]
[1771748264745,9.25161358,85.079,85.039,4.41030213]
[1771748264935,9.25174298,85.078,85.039,4.41030213]
[1771748265139,10.5803,85.089,85.039,4.41030213]
[1771748265340,9.25385927,85.088,85.039,4.41030213]
[1771748265544,9.25385927,85.087,85.042,4.41030213]
[1771748265744,10.5792,85.098,85.042,4.41030213]
[1771748265944,9.25527185,85.097,85.042,4.41030213]
[1771748266144,10.5792,85.098,85.042,4.41030213]
[1771748266145,9.25527185,85.096,85.042,4.41030213]
[1771748266345,10.5792,85.098,85.042,4.41030213]
[1771748266346,9.25527185,85.095,85.042,4.41030213]
[1771748266544,9.25527185,85.094,85.042,4.41030213]
[1771748266847,9.25527185,85.093,85.044,4.42320786]
[1771748267043,9.25527185,85.092,85.044,4.42320786]
[1771748267243,271.44333839,85.101,85.044,4.42320786]
[1771748267442,9.25572296,85.1,85.044,4.42320786]
[1771748267646,9.25572296,85.099,85.044,4.42320786]
[1771748267842,9.25572296,85.098,85.044,4.42320786]
[1771748268042,9.25572296,85.097,85.044,4.42320786]
[1771748268347,9.25572296,85.096,85.044,4.42320786]
[1771748268545,9.25572296,85.095,85.044,4.42320786]
[1771748268746,9.25572296,85.094,85.049,4.40188846]
[1771748268946,9.25572296,85.093,85.049,4.40188846]
[1771748269148,9.25572296,85.092,85.049,4.40188846]
[1771748269342,2.47583765,85.1,85.049,4.40188846]
[1771748269543,9.25574827,85.099,85.049,4.40188846]
[1771748269743,9.25574827,85.098,85.049,4.40188846]
[1771748269946,9.25574827,85.097,85.049,4.40188846]
[1771748270137,9.25574827,85.096,85.049,4.40188846]
[1771748270338,9.25574827,85.095,85.049,4.40188846]
[1771748270536,2.47583765,85.09,85.049,4.40188846]
[1771748273150,2.47583765,85.09,85.054,4.39568775]
[1771748274849,2.47583765,85.1,85.054,4.39568775]
[1771748275148,9.25589359,85.099,85.054,4.39568775]
[1771748275348,9.25589359,85.098,85.054,4.39568775]
[1771748275547,9.25589359,85.097,85.054,4.39568775]
[1771748275749,9.25589359,85.096,85.054,4.39568775]
[1771748275947,9.25589359,85.095,85.054,4.39568775]
[1771748276147,9.25589359,85.094,85.054,4.39568775]
[1771748276347,9.25589359,85.093,85.054,4.39568775]
[1771748276548,9.25589359,85.092,85.054,4.39568775]
[1771748276848,2.4758135,85.1,85.054,4.39568775]
[1771748277049,9.25599827,85.099,85.054,4.39568775]
[1771748277249,9.25599827,85.098,85.054,4.39568775]
[1771748277549,9.25599827,85.097,85.054,4.39568775]
[1771748277848,9.25599827,85.096,85.054,4.39568775]
[1771748278049,9.25599827,85.095,85.054,4.39568775]
[1771748278249,9.25599827,85.094,85.054,4.39568775]
[1771748278449,9.25599827,85.093,85.054,4.39568775]
[1771748278748,9.25599827,85.092,85.054,4.39568775]
[1771748279050,2.4758135,85.1,85.054,4.39568775]
[1771748279249,9.25379724,85.099,85.054,4.39568775]
[1771748279446,9.25379724,85.098,85.054,4.39568775]
[1771748279649,9.25379724,85.097,85.054,4.39568775]
[1771748279950,9.25379724,85.096,85.054,4.39568775]
[1771748280150,2.4758135,85.1,85.054,4.39568775]
[1771748280151,9.25379724,85.095,85.054,4.39568775]
[1771748280352,9.25379724,85.094,85.054,4.39568775]
[1771748280553,9.25379724,85.093,85.054,4.39568775]
[1771748280754,9.25379724,85.092,85.054,4.39568775]
[1771748280955,2.4758135,85.1,85.054,4.39568775]
[1771748281150,9.25581599,85.099,85.054,4.39568775]
[1771748281351,9.25581599,85.098,85.054,4.39568775]
[1771748281551,9.25581599,85.097,85.054,4.39568775]
[1771748281752,9.25581599,85.096,85.054,4.39568775]
[1771748281953,9.25581599,85.095,85.054,4.39568775]
[1771748282255,9.25581599,85.094,85.054,4.39568775]
[1771748282555,9.25581599,85.093,85.054,4.39568775]
[1771748282854,9.25581599,85.092,85.054,4.39568775]
[1771748283054,2.4758135,85.1,85.054,4.39568775]
[1771748283256,9.25601926,85.099,85.054,4.39568775]
[1771748283454,9.25601926,85.098,85.054,4.39568775]
[1771748283655,9.25601926,85.097,85.054,4.39568775]
[1771748283856,2.4758135,85.09,85.054,4.39568775]
[1771748288558,2.4758135,85.09,85.056,4.38235354]
[1771748289059,2.4758135,85.1,85.056,4.38235354]
[1771748289257,9.25939836,85.099,85.056,4.38235354]
[1771748289451,9.25939836,85.098,85.056,4.38235354]
[1771748289656,9.25939836,85.097,85.056,4.38235354]
[1771748289858,9.25939836,85.096,85.056,4.38235354]
[1771748290158,2.4758135,85.1,85.056,4.38235354]
[1771748290354,9.25923611,85.099,85.056,4.38235354]
[1771748290559,9.25923611,85.098,85.056,4.38235354]
[1771748290758,9.25923611,85.097,85.056,4.38235354]
[1771748290958,9.25923611,85.096,85.056,4.38235354]
[1771748291160,2.4758135,85.1,85.056,4.38235354]
[1771748291359,2.4758135,85.09,85.056,4.38235354]
[1771748297366,2.4758135,85.1,85.056,4.38235354]
[1771748297557,9.24828693,85.099,85.056,4.38235354]
[1771748297757,9.24828693,85.098,85.056,4.38235354]
[1771748297953,9.24828693,85.097,85.056,4.38235354]
[1771748298157,2.4758135,85.1,85.056,4.38235354]
[1771748298158,9.24828693,85.096,85.056,4.38235354]
[1771748298355,2.4758135,85.1,85.056,4.38235354]
[1771748298555,9.24912848,85.099,85.056,4.38235354]
[1771748298856,9.24912848,85.098,85.056,4.38235354]
[1771748299057,9.24912848,85.097,85.056,4.38235354]
[1771748299261,9.24912848,85.096,85.056,4.38235354]
[1771748299455,2.4758135,85.1,85.056,4.38235354]
[1771748299755,9.24726297,85.099,85.056,4.38235354]
[1771748299957,9.24726297,85.098,85.056,4.38235354]
[1771748300163,9.24726297,85.097,85.056,4.38235354]
[1771748300364,9.24726297,85.096,85.056,4.38235354]
[1771748300561,2.4758135,85.1,85.056,4.38235354]
[1771748300855,9.2470932,85.099,85.056,4.38235354]
[1771748301061,9.2470932,85.098,85.056,4.38235354]
[1771748301260,9.2470932,85.097,85.056,4.38235354]
[1771748301465,9.2470932,85.096,85.056,4.38235354]
[1771748301667,2.4758135,85.1,85.056,4.38235354]
[1771748301869,9.24715393,85.099,85.056,4.38235354]
[1771748302062,9.24715393,85.098,85.056,4.38235354]
[1771748302262,2.4758135,85.1,85.056,4.38235354]
[1771748302263,9.24715393,85.097,85.056,4.38235354]
[1771748302463,9.24715393,85.096,85.056,4.38235354]
[1771748302665,2.4758135,85.09,85.056,4.38235354]
[1771748307772,2.4758135,85.1,85.056,4.38235354]
[1771748307975,2.4758135,85.08,85.047,4.40841743]
[1771748309072,271.44333839,85.101,85.061,4.42261025]
[1771748309269,11.72412056,85.1,85.061,4.42261025]
[1771748309471,2.4758135,85.09,85.061,4.42261025]
[1771748310778,9.25405262,85.089,85.061,4.42261025]
[1771748310978,2.4758135,85.09,85.061,4.42261025]
[1771748311278,9.25509374,85.089,85.061,4.42261025]
[1771748311479,2.4758135,85.09,85.061,4.42261025]
[1771748311678,9.25510846,85.089,85.061,4.42261025]
[1771748311873,2.4758135,85.09,85.061,4.42261025]
[1771748312074,9.2551085,85.089,85.061,4.42261025]
[1771748312270,2.4758135,85.09,85.061,4.42261025]
[1771748312472,9.25510441,85.089,85.061,4.42261025]
[1771748312674,2.4758135,85.09,85.061,4.42261025]
[1771748312883,9.25510441,85.089,85.061,4.42261025]
[1771748313079,2.4758135,85.09,85.061,4.42261025]
[1771748313279,9.25514281,85.089,85.061,4.42261025]
[1771748313480,2.4758135,85.09,85.061,4.42261025]
[1771748313682,9.25510108,85.089,85.061,4.42261025]
[1771748313883,2.4758135,85.09,85.061,4.42261025]
[1771748314078,9.25510108,85.089,85.061,4.42261025]
[1771748314286,2.4758135,85.1,85.061,4.42261025]
[1771748314584,271.44333839,85.101,85.061,4.42261025]
[1771748314989,9.2563509,85.1,85.061,4.42261025]
[1771748315181,271.44333839,85.101,85.061,15.00631025]
[1771748315382,271.44333839,85.101,85.062,4.44798334]
[1771748320490,2.4758135,85.1,85.062,4.44798334]
[1771748325992,2.4758135,85.1,85.064,4.4417519]
[1771748327595,2.4758135,85.08,85.064,4.4417519]
[1771748327795,2.4758135,85.08,85.053,15.02641239]
[1771748328484,1.35e-05,85.07,85.053,15.02641239]
[1771748334297,282.02213839,85.101,85.043,14.99468578]
[1771748334596,2.4758135,85.07,85.043,14.99468578]
[1771748335194,1.35e-05,85.08,85.034,4.40862238]
[1771748335693,1.35e-05,85.08,85.016,192.15966024]
[1771748335694,1.35e-05,85.08,85.048,4.40862238]
[1771748335997,2.47637654,85.08,85.048,4.40862238]
[1771748336794,2.47637654,85.09,85.05,4.42231741]
[1771748337699,2.47637654,85.09,85.055,4.42231741]
[1771748338896,271.44333839,85.101,85.063,4.37728788]
[1771748339200,2.47637654,85.11,85.063,4.37728788]
[1771748340398,165.63211192,85.113,85.073,4.39363755]
[1771748340598,2.47637654,85.12,85.073,4.39363755]
[1771748341991,2.47637654,85.11,85.073,4.39363755]
[1771748344201,2.47637654,85.12,85.075,4.37909037]
[1771748345200,2.47637654,85.12,85.078,4.33331812]
[1771748345698,16.68635927,85.172,85.078,4.33331812]
[1771748345699,2.47637654,85.11,85.078,4.33331812]
[1771748353810,2.47637654,85.12,85.078,4.33331812]
[1771748354008,2.47637654,85.11,85.078,4.33331812]
[1771748354806,2.47637654,85.12,85.078,4.33331812]
[1771748357216,2.47637654,85.11,85.078,4.33331812]
[1771748357712,2.47637654,85.11,85.03,62.0]
[1771748357713,2.47637654,85.11,85.066,4.27139347]
[1771748357918,10.5766,85.119,85.066,4.27139347]
[1771748357919,2.47637654,85.1,85.066,4.27139347]
[1771748358212,2.47637654,85.09,85.041,4.27139347]
[1771748359712,2.47637654,85.09,85.055,4.27410525]
[1771748362422,2.47637654,85.1,85.055,4.27410525]
[1771748364323,2.47637654,85.09,85.055,4.27410525]
[1771748368024,2.47637654,85.1,85.055,4.27410525]
[1771748368226,2.47637654,85.09,85.055,4.27410525]
[1771748375332,2.47637654,85.09,85.041,4.26499511]
[1771748375723,2.47637654,85.08,85.041,4.26499511]
[1771748375931,2.47637654,85.1,85.041,4.26499511]
[1771748376127,9.14542489,85.099,85.041,4.26499511]
[1771748376428,2.47637654,85.09,85.041,4.26499511]
[1771748378928,2.47637654,85.1,85.051,4.3170701]
[1771748379130,9.14577011,85.099,85.051,4.3170701]
[1771748379330,9.14577631,85.098,85.051,4.3170701]
[1771748379629,2.47637654,85.1,85.051,4.3170701]
[1771748379829,2.47637654,85.09,85.051,4.3170701]
[1771748381126,2.47637654,85.1,85.051,4.3170701]
[1771748394135,2.47637654,85.1,85.052,10.5848]
[1771748394340,2.47637654,85.1,85.053,4.28688645]
[1771748397548,10.578,85.108,85.056,4.28505502]
[1771748398149,9.16012245,85.107,85.056,4.28505502]
[1771748398450,10.578,85.108,85.056,4.28505502]
[1771748398639,9.16012245,85.107,85.056,4.28505502]
[1771748398839,10.578,85.108,85.056,4.28505502]
[1771748399143,9.160117,85.107,85.056,4.28505502]
[1771748399344,2.47514218,85.1,85.056,4.28505502]
[1771748402354,2.47514218,85.1,85.064,4.2844111]
[1771748402549,2.47514218,85.11,85.064,4.2844111]
[1771748402751,2.47514218,85.1,85.064,4.2844111]
[1771748404656,2.47514218,85.09,85.064,4.2844111]
[1771748404857,2.47514218,85.09,85.055,4.296369]
[1771748405658,2.47514218,85.08,85.055,4.296369]
[1771748417859,2.47514218,85.08,85.008,35.28]
[1771748417860,2.47514218,85.07,85.045,4.28231363]
[1771748420466,2.47514218,85.06,85.027,4.30057083]
[1771748421166,2.47514218,85.07,85.027,4.30057083]
[1771748422565,2.47514218,85.06,85.027,4.30057083]
[1771748424070,2.47514218,85.05,85.014,4.31628117]
[1771748424272,2.47514218,85.06,85.017,4.31628117]
[1771748425064,2.47514218,85.05,85.017,4.31628117]
[1771748428369,2.47514218,85.06,85.019,4.31983606]
[1771748430070,10.583,85.068,84.987,2.04624634]
[1771748430071,9.1383378,85.094,85.021,4.32000698]
[1771748430271,2.47514218,85.08,85.031,4.32000698]
[1771748430865,10.5807,85.086,85.041,4.36594231]
[1771748431066,9.13636456,85.085,85.041,4.36594231]
[1771748431371,10.5807,85.086,85.041,4.36594231]
[1771748442380,2.47514218,85.08,85.041,4.36594231]
[1771748443984,10.5796,85.095,85.041,4.36594231]
[1771748445683,10.5796,85.095,85.042,10.5861]
[1771748445880,2.47514218,85.09,85.043,4.34640362]
[1771748446280,2.47514218,85.08,85.043,4.34640362]
[1771748446480,2.47514218,85.07,85.043,4.34640362]
[1771748449485,2.47514218,85.08,85.043,4.34640362]
[1771748449787,2.47514218,85.08,85.03,4.28505735]
[1771748450780,2.47514218,85.08,85.031,10.5875]
[1771748450982,2.47514218,85.08,85.032,4.28472355]
[1771748451584,2.47514218,85.08,85.034,4.28472355]
[1771748452883,13.05664218,85.08,85.034,4.28472355]
[1771748453087,2.47514218,85.08,85.034,4.28472355]
[1771748456980,2.47514218,85.08,85.036,4.31715537]
[1771748457189,2.47514218,85.1,85.041,4.31715537]
[1771748457384,9.14854414,85.099,85.041,4.31715537]
[1771748457585,9.14854414,85.098,85.041,4.31715537]
[1771748457786,9.14854414,85.097,85.041,4.31715537]
[1771748457986,2.47568847,85.1,85.041,4.31715537]
[1771748458288,9.14943233,85.099,85.041,4.31715537]
[1771748458484,9.14943233,85.098,85.041,4.31715537]
[1771748458778,9.14943233,85.097,85.041,4.31715537]
[1771748458983,9.14943233,85.096,85.041,4.31715537]
[1771748459185,2.47568847,85.1,85.041,4.31715537]
[1771748459385,9.15031926,85.099,85.041,4.31715537]
[1771748459688,9.15031926,85.098,85.041,4.31715537]
[1771748459889,9.15031926,85.097,85.041,4.31715537]
[1771748460091,9.15031926,85.096,85.041,4.31715537]
[1771748460287,2.47568847,85.1,85.041,4.31715537]
[1771748460483,9.15088701,85.099,85.041,4.31715537]